[Event "MCCT Chessable Masters 2022"]
[Site "Online"]
[Date "2022.05.16"]
[Round "8.4"]
[White "Giri, Anish"]
[Black "Mamedyarov, Shakhriyar"]
[Result "1/2-1/2"]
[ECO "E05"]
[WhiteElo "2761"]
[BlackElo "2770"]
[Annotator "TA"]
[PlyCount "53"]
[EventDate "2022.05.19"]
[EventType "tourn"]
[EventCountry "NET"]
[SourceTitle "playchess.com"]
[Source "ChessBase"]
[SourceQuality "1"]
[TimeControl "900+10"]

{[%evp 12,53,36,8,9,21,15,15,21,8,38,36,32,39,33,34,33,29,73,74,84,69,61,0,0,0,0,0,0,0,0,0,0,0,0,0,0,0,0,0,0,0,0,0]} 1. Nf3 {[%emt 0:00:00]} Nf6 {[%emt 0:00:00]} 2. c4 {[%emt 0:00:02]} e6 {[%emt 0:00:01]} 3. g3 {[%emt 0:00:08]} d5 {[%emt 0:00:02]} 4. d4 {[%emt 0:00:02]} Be7 {[%emt 0:00:05]} 5. Bg2 {[%emt 0:00:01]} O-O {[%emt 0:00:01]} 6. O-O {[%emt 0:00:10]} dxc4 {[%emt 0:00:01]} 7. Qc2 {[%emt 0:00:09]} b6 {[%emt 0:00:01] E05: Open Catalan: 5 Nf3 Be7.} (7... a6 $5 {[%cal Rb7b5]}) 8. Bg5 {[%emt 0:00:20]} Nd5 {[%emt 0:00:20]} 9. Bxe7 {[%emt 0:00:06]} Qxe7 {[%emt 0:00:00]} 10. Ne5 {[%emt 0:01:41]} c5 {[%emt 0:00:48]} (10... Rd8 {is more complex.} 11. Nd2 c5 12. dxc5 Qxc5 13. Ndxc4 Bb7) 11. dxc5 {[%emt 0:00:24]} Qxc5 {[%emt 0:00:22]} 12. Qxc4 {[%emt 0:00:10]} Qxc4 {[%emt 0:03:25]} 13. Nxc4 {[%emt 0:00:02] [#]} Nc6 $146 {[%emt 0:00:35]} ({Predecessor:} 13... Ba6 14. Ne3 Nd7 15. Nxd5 exd5 16. Nc3 Nf6 17. Rfd1 Rfd8 18. Nxd5 Nxd5 19. Rxd5 Rac8 {1-0 (54) Kozionov,K (2466)-Mendonca,L (2418) Moscow 2020}) 14. Nc3 {[%emt 0:03:26]} Ba6 {[%emt 0:00:44]} 15. Nxd5 {[%emt 0:00:11]} exd5 {[%emt 0:00:04]} 16. Bxd5 {[%emt 0:02:49]} Rad8 {[%emt 0:00:20]} 17. Bxc6 {[%emt 0:00:53] White is more active.} (17. Ne3 $14 Rc8 18. Nf5) 17... Bxc4 $11 {[%emt 0:00:03] The position is equal.} 18. Bf3 {[%emt 0:00:10]} Rd2 {[%emt 0:00:02][%csl LRb2,LRe2]} 19. b3 {[%emt 0:00:01]} Bxe2 {[%emt 0:00:02]} 20. Bxe2 {[%emt 0:00:00]} Rxe2 {[%emt 0:00:00]} 21. Rfe1 {[%emt 0:00:00]} Rxe1+ {[%emt 0:00:21]} 22. Rxe1 {[%emt 0:00:02] KR-KR} f6 {[%emt 0:00:01]} 23. Re7 {[%emt 0:00:14]} Rf7 $1 {[%emt 0:00:01]} 24. Re8+ {[%emt 0:00:00]} Rf8 {[%emt 0:00:01]} 25. Re7 {[%emt 0:00:00]} Rf7 $1 {[%emt 0:00:00]} 26. Re8+ {[%emt 0:00:01]} Rf8 {[%emt 0:00:01]} 27. Re7 {[%emt 0:00:00] Weighted Error Value: White=0.05 (flawless) /Black=0.06 (flawless)} 1/2-1/2

[Event "MCCT Chessable Masters 2022"]
[Site "Online"]
[Date "2022.05.16"]
[Round "8.5"]
[White "Tari, Aryan"]
[Black "Hansen, Eric"]
[Result "1/2-1/2"]
[ECO "C41"]
[WhiteElo "2654"]
[BlackElo "2606"]
[Annotator "TA"]
[PlyCount "86"]
[EventDate "2022.05.19"]
[EventType "tourn"]
[EventCountry "NET"]
[SourceTitle "playchess.com"]
[Source "ChessBase"]
[SourceQuality "1"]
[TimeControl "900+10"]

{[%evp 9,86,21,46,46,52,28,125,131,117,62,61,44,132,122,137,112,145,141,137,136,136,139,156,145,141,142,153,75,81,54,40,0,87,100,75,81,69,76,258,235,270,268,244,142,172,154,231,234,335,239,562,561,537,177,173,164,162,158,154,145,147,139,120,0,0,0,0,0,0,0,0,0,0,0,0,0,0,0,0]} 1. e4 {[%emt 0:00:00]} d6 {[%emt 0:00:00]} 2. d4 {[%emt 0:00:04]} Nf6 {[%emt 0:00:01]} 3. Nc3 {[%emt 0:00:02]} e5 {[%emt 0:00:03]} 4. Nf3 {[%emt 0:00:17]} Nbd7 {[%emt 0:00:01]} 5. Rg1 {[%emt 0:00:05]} exd4 {[%emt 0:00:55]} 6. Nxd4 {[%emt 0:00:06] C41: Philidor Defence.} Nc5 {[%emt 0:00:38]} 7. Qf3 {[%emt 0:01:04]} Be7 {[%emt 0:00:11]} (7... c6 $11 {keeps the balance.}) 8. g4 $1 $16 {[%emt 0:00:32] White is better.} h5 {[%emt 0:03:12][%cal Rh5g4] [#]} 9. h3 $146 {[%emt 0:01:00]} ({White should play} 9. g5 $16) ({Predecessor:} 9. g5 Ng4 10. h4 Be6 11. Bf4 Qd7 12. O-O-O O-O-O 13. Qg3 Na4 14. Bb5 {1-0 (14) Ardelean,G (2488)-Praveen Kumar,C (2158) Chess.com INT 2020}) 9... hxg4 $14 {[%emt 0:00:06]} 10. hxg4 {[%emt 0:00:03]} Nfd7 {[%emt 0:02:10]} (10... Rh4 $14) 11. g5 $16 {[%emt 0:03:17] White is more active.} Ne5 {[%emt 0:00:51]} 12. Qe2 {[%emt 0:01:03]} Nc6 {[%emt 0:02:05]} 13. Nxc6 {[%emt 0:01:09]} bxc6 {[%emt 0:00:03]} 14. Be3 $1 {[%emt 0:00:00]} Ba6 {[%emt 0:00:07]} 15. Qd2 {[%emt 0:00:03]} Bxf1 {[%emt 0:00:06]} 16. Rxf1 {[%emt 0:00:06]} Qd7 {[%emt 0:03:38]} 17. O-O-O {[%emt 0:00:13]} Qe6 {[%emt 0:00:14]} 18. Qd4 {[%emt 0:02:56]} (18. Bxc5 $142 dxc5 19. f4) 18... Qe5 {[%emt 0:00:22]} 19. Qc4 {[%emt 0:00:10]} Qe6 {[%emt 0:00:05]} (19... Bxg5 $2 20. f4 Qe6 21. Qxe6+ Nxe6 22. fxg5 $18) 20. Qd4 {[%emt 0:01:29]} (20. Rd4 $14 {deserves consideration.}) 20... Qe5 {[%emt 0:00:03]} 21. Qb4 $1 {[%emt 0:00:10]} a5 {[%emt 0:00:14]} (21... Bxg5 $2 22. f4 Bxf4 23. Bxf4 $18) 22. Qa3 {[%emt 0:00:01] f4 is the strong threat.} Qe6 {[%emt 0:02:57]} (22... Nxe4 $2 23. Qa4 O-O 24. Nxe4 $18) (22... Bxg5 $2 23. f4 Bxf4 24. Bxf4 $18) 23. f4 {[%emt 0:01:08]} Rh3 $2 {[%emt 0:00:06]} (23... Nxe4 $2 24. Qa4 f5 25. Qxc6+ Kf7 26. Bd4 $18 (26. Qxc7 Rac8 $11)) (23... Qc4 $16 {might work better.}) 24. Bxc5 $18 {[%emt 0:00:14]} dxc5 {[%emt 0:00:02]} 25. Qa4 $1 {[%emt 0:00:06] And now f5 would win.} Kf8 {[%emt 0:00:06]} 26. e5 {[%emt 0:01:06]} (26. Kb1 $18) 26... c4 {[%emt 0:00:14][%cal Oh3c3]} 27. a3 {[%emt 0:00:06]} Bc5 {[%emt 0:00:30]} (27... Kg8 $16 28. Ne4 Rh4) 28. Kb1 {[%emt 0:00:42] Threatens to win with f5.} Kg8 {[%emt 0:00:09]} (28... g6 $142 29. Ne4 Be7) 29. Ka2 {[%emt 0:00:12]} Rh2 $2 {[%emt 0:00:13]} (29... g6 30. Rh1 Rxh1 31. Rxh1 Be7) 30. f5 {[%emt 0:01:14]} Qxe5 {[%emt 0:00:01]} 31. Qxc6 $2 {[%emt 0:00:00]} (31. g6) 31... Rb8 {[%emt 0:00:01] [#]} 32. Rd5 $1 {[%emt 0:00:19]} Rxb2+ {[%emt 0:00:20]} 33. Kxb2 {[%emt 0:00:00] The board is on fire.} Bxa3+ {[%emt 0:00:01] [#]} 34. Kb1 $1 {[%emt 0:00:19]} (34. Kxa3 $2 {leads to mate.} Qxc3+ 35. Ka2 Rxc2+ 36. Kb1 Qb2#) 34... Qxc3 {[%emt 0:00:05][%csl Ga3][%cal Rc3b2]} 35. Rd8+ {[%emt 0:00:26]} Bf8 {[%emt 0:00:23] [#]} 36. Rxf8+ $1 {[%emt 0:00:41][%mdl 512]} Kxf8 $16 {[%emt 0:00:00][%mdl 4096] Endgame KQR-KQR. The position is equal.} 37. Qa8+ {[%emt 0:00:01]} Ke7 {[%emt 0:00:00]} 38. f6+ {[%emt 0:00:01]} gxf6 {[%emt 0:00:04]} 39. gxf6+ {[%emt 0:00:01]} Kd7 {[%emt 0:00:23]} 40. Qd5+ {[%emt 0:00:52]} Kc8 {[%emt 0:00:02]} 41. Qa8+ {[%emt 0:00:06]} Kd7 {[%emt 0:00:01]} 42. Qd5+ {[%emt 0:00:11]} Kc8 {[%emt 0:00:01]} 43. Qa8+ {[%emt 0:00:10]} Kd7 {[%emt 0:00:01] White really could win this.  Weighted Error Value: White=0.29 (precise) /Black=0.29 (precise)} 1/2-1/2

[Event "MCCT Chessable Masters 2022"]
[Site "Online"]
[Date "2022.05.16"]
[Round "8.6"]
[White "Grandelius, Nils"]
[Black "Ding, Liren"]
[Result "1/2-1/2"]
[ECO "C90"]
[WhiteElo "2635"]
[BlackElo "2806"]
[Annotator "TA"]
[PlyCount "111"]
[EventDate "2022.05.19"]
[EventType "tourn"]
[EventCountry "NET"]
[SourceTitle "playchess.com"]
[Source "ChessBase"]
[SourceQuality "1"]
[TimeControl "900+10"]

{[%evp 23,111,16,20,6,19,9,9,14,0,0,0,0,0,0,10,2,11,0,0,0,0,-17,-12,-17,-19,-10,-15,-24,-11,-18,-16,-18,-25,-12,-27,-64,-55,-47,-32,-26,-27,-42,-42,-42,-42,-46,-44,-58,-54,-51,-33,-35,-20,-25,-25,-25,0,0,0,0,0,0,0,0,0,0,0,0,0,0,0,0,0,0,0,0,0,0,0,-1,-2,-5,-2,-5,-4,-8,-8,-8,-11,-11]} 1. e4 {[%emt 0:00:00]} e5 {[%emt 0:00:00]} 2. Nf3 {[%emt 0:00:02]} Nc6 {[%emt 0:00:01]} 3. Bb5 {[%emt 0:00:01]} a6 {[%emt 0:00:01]} 4. Ba4 {[%emt 0:00:01]} Nf6 {[%emt 0:00:01]} 5. O-O {[%emt 0:00:02]} Be7 {[%emt 0:00:00]} 6. d3 {[%emt 0:00:02]} b5 {[%emt 0:00:03]} 7. Bb3 {[%emt 0:00:01]} d6 {[%emt 0:00:00]} 8. c3 {[%emt 0:00:13]} O-O {[%emt 0:00:06]} 9. a4 {[%emt 0:00:01]} Bd7 {[%emt 0:00:44]} 10. Bc2 {[%emt 0:00:04]} Re8 {[%emt 0:00:02]} 11. Re1 {[%emt 0:00:08]} h6 {[%emt 0:00:02]} 12. Nbd2 {[%emt 0:00:02]} Bf8 {[%emt 0:00:01]} 13. h3 {[%emt 0:00:11] C90: Closed Ruy Lopez with 7...d6: Early deviations.} Rb8 {[%emt 0:00:15]} 14. axb5 {[%emt 0:00:12]} axb5 {[%emt 0:00:00]} 15. Nf1 {[%emt 0:00:05]} Ne7 {[%emt 0:00:31]} 16. d4 {[%emt 0:00:33]} Ng6 {[%emt 0:00:02]} 17. Ng3 {[%emt 0:00:16]} c5 {[%emt 0:01:49]} 18. Be3 {[%emt 0:03:21]} Qc7 {[%emt 0:00:06]} 19. Qd2 {[%emt 0:00:07] [#]} Ra8 $146 {[%emt 0:00:05]} ({Predecessor:} 19... Rec8 20. d5 Ra8 21. Reb1 Qd8 22. Kh2 Rxa1 23. Rxa1 Ra8 24. Rxa8 Qxa8 25. b3 Qa2 26. Ne2 Be7 27. Qd1 Nh7 28. Qb1 Qxb1 {½-½ (28) Stewart,D-Atkins,A (1500) ICCF email 2020}) 20. Red1 {[%emt 0:01:47]} Bc6 {[%emt 0:03:04]} 21. d5 {[%emt 0:00:13]} Bd7 {[%emt 0:00:01]} 22. b4 {[%emt 0:00:00]} c4 {[%emt 0:00:04]} 23. Rdb1 {[%emt 0:01:55]} Be7 {[%emt 0:00:09]} 24. Qc1 {[%emt 0:00:06]} Qb7 {[%emt 0:00:09]} 25. Rb2 {[%emt 0:00:43]} Rxa1 {[%emt 0:00:17]} 26. Qxa1 {[%emt 0:00:00]} Ra8 {[%emt 0:00:01]} 27. Ra2 {[%emt 0:00:01]} Rxa2 {[%emt 0:00:00]} 28. Qxa2 {[%emt 0:00:00]} Bd8 {[%emt 0:00:01]} 29. Qa7 {[%emt 0:00:06]} Qxa7 {[%emt 0:00:01]} 30. Bxa7 {[%emt 0:00:00]} Nf4 {[%emt 0:00:11]} 31. Kf1 {[%emt 0:01:56]} g6 {[%emt 0:00:13]} 32. Ne2 {[%emt 0:00:35]} N6h5 {[%emt 0:01:01]} 33. Nxf4 {[%emt 0:01:09]} Nxf4 {[%emt 0:00:00]} 34. Be3 {[%emt 0:00:02]} Kg7 {[%emt 0:00:18]} 35. Ng1 {[%emt 0:01:30]} f5 {[%emt 0:01:44]} 36. f3 {[%emt 0:00:10]} fxe4 {[%emt 0:01:18]} 37. fxe4 {[%emt 0:00:11]} h5 {[%emt 0:00:26]} 38. Ne2 {[%emt 0:00:59]} g5 {[%emt 0:00:03]} 39. Bd1 {[%emt 0:01:08]} h4 {[%emt 0:01:14]} 40. Ng1 {[%emt 0:01:03] The position is equal.} Be8 {[%emt 0:00:01]} 41. Nf3 {[%emt 0:01:32]} Bh5 {[%emt 0:00:04]} 42. Nxg5 $1 {[%emt 0:01:18]} Bxd1 {[%emt 0:02:27]} 43. Bxf4 $11 {[%emt 0:00:02][%mdl 4096] [#] Endgame And now Ne6+ would win. KBB-KBN} Kg6 {[%emt 0:00:00]} 44. Ne6 {[%emt 0:00:06]} Be7 {[%emt 0:00:08]} 45. Be3 {[%emt 0:00:20]} Bc2 {[%emt 0:00:02]} 46. Kf2 {[%emt 0:00:19]} Bxe4 {[%emt 0:00:03]} 47. Nc7 {[%emt 0:00:01]} Kf5 {[%emt 0:00:54]} 48. Ba7 {[%emt 0:00:01]} Bf8 {[%emt 0:03:16]} 49. Nxb5 {[%emt 0:00:10] Black must now prevent Nc7.} Bxd5 {[%emt 0:00:02]} 50. Bb8 {[%emt 0:00:01]} Ke4 {[%emt 0:00:23]} 51. Nxd6+ {[%emt 0:00:16]} Kd3 {[%emt 0:00:08] [#] ...e4 is the strong threat.} 52. Nxc4 {[%emt 0:00:20]} Bxc4 {[%emt 0:00:25]} ({Reject} 52... Kxc4 $6 53. Bxe5 Kd3 54. Bf6 $17) 53. Bxe5 {[%emt 0:00:02]} Bh6 {[%emt 0:00:01]} 54. g3 {[%emt 0:00:15]} Be3+ {[%emt 0:00:03]} 55. Kf3 {[%emt 0:00:10]} Bd5+ {[%emt 0:00:10]} 56. Kg4 {[%emt 0:00:01] Weighted Error Value: White=0.04 (flawless) /Black=0.02 (flawless)} 1/2-1/2

[Event "MCCT Chessable Masters 2022"]
[Site "Online"]
[Date "2022.05.16"]
[Round "8.7"]
[White "Praggnanandhaa R"]
[Black "Anton Guijarro, David"]
[Result "0-1"]
[ECO "C78"]
[WhiteElo "2642"]
[BlackElo "2691"]
[Annotator "TA"]
[PlyCount "128"]
[EventDate "2022.05.19"]
[EventType "tourn"]
[EventCountry "NET"]
[SourceTitle "playchess.com"]
[Source "ChessBase"]
[SourceQuality "1"]
[TimeControl "900+10"]

{[%evp 12,128,12,17,21,21,29,16,17,5,21,9,13,17,12,0,0,0,0,-2,2,0,0,0,0,-9,-13,-18,4,-16,18,14,20,32,29,-10,0,0,47,39,45,-16,39,18,30,0,0,-12,-10,-10,-4,-20,-4,-93,-93,-105,-94,-273,-220,-218,-72,-201,-209,-219,-145,-158,-99,-149,-141,-138,-147,-210,-128,-235,-229,-235,-225,-216,-194,-170,-106,-106,-106,-106,-106,-106,-106,-106,-106,-106,-106,-114,-115,-219,-220,-216,-218,-310,-294,-582,-556,-29969,-29970,-29972,-29973,-29973,-29974,-29974,-29975,-29974,-29975,-29975,-29976,-29976,-29977,-29974,-29975,-29983,-29984]} 1. e4 {[%emt 0:00:00]} e5 {[%emt 0:00:00]} 2. Nf3 {[%emt 0:00:02]} Nc6 {[%emt 0:00:02]} 3. Bb5 {[%emt 0:00:00]} a6 {[%emt 0:00:01]} 4. Ba4 {[%emt 0:00:01]} Nf6 {[%emt 0:00:02]} 5. d3 {[%emt 0:00:02]} Bc5 {[%emt 0:00:04]} 6. c3 {[%emt 0:00:01]} d6 {[%emt 0:00:03]} 7. O-O {[%emt 0:00:02]} Ba7 {[%emt 0:00:13] C78: Ruy Lopez: Archangelsk and Möller Defences.} 8. Re1 {[%emt 0:00:19]} O-O {[%emt 0:00:09]} 9. h3 {[%emt 0:00:02]} h6 {[%emt 0:00:20] The position is equal.} 10. Nbd2 {[%emt 0:01:40]} Ne7 {[%emt 0:00:20]} 11. Nf1 {[%emt 0:00:23]} Ng6 {[%emt 0:00:16]} 12. Ng3 {[%emt 0:00:04]} c5 $5 {[%emt 0:00:35][%mdl 4] Leaves trodden paths.} 13. Bc2 {[%emt 0:01:23][%cal Ba4c2,Bc2b3,Bb3d5][%mdl 32]} d5 {[%emt 0:02:50]} 14. exd5 {[%emt 0:00:31]} Qxd5 {[%emt 0:00:03]} 15. Bb3 {[%emt 0:04:33]} Qd6 {[%emt 0:00:08] [#]} 16. Qe2 $146 {[%emt 0:00:11][%cal Rf3e5]} ({Predecessor:} 16. Ne4 Qc6 {½-½ (16) Klewe,W (2243)-Kutlu,H (2212) ICCF email 2019}) 16... Re8 {[%emt 0:01:05]} 17. Ne4 {[%emt 0:00:41]} Qc6 {[%emt 0:00:25]} 18. Nxf6+ {[%emt 0:01:17]} Qxf6 {[%emt 0:00:05]} 19. Bd5 {[%emt 0:00:29]} Rb8 {[%emt 0:02:22]} 20. Be3 {[%emt 0:02:01]} Bd7 {[%emt 0:02:43]} 21. Nd2 {[%emt 0:00:55]} Qd6 {[%emt 0:01:59]} 22. Qf3 {[%emt 0:00:36][%csl LRb7,LRf7]} Be6 {[%emt 0:00:59]} 23. Bxe6 {[%emt 0:00:02]} Rxe6 {[%emt 0:00:43]} 24. Ne4 {[%emt 0:01:28]} Qxd3 {[%emt 0:00:56]} (24... Qc6 $11) 25. Rad1 {[%emt 0:00:05]} ({Much worse is} 25. Bxc5 Qxf3 26. gxf3 Bb6 27. Bxb6 Rxb6 $17) (25. Nxc5 Bxc5 26. Bxc5 Qxf3 27. gxf3 Nh4 $17) 25... Qb5 {[%emt 0:00:25]} 26. b4 {[%emt 0:00:15]} (26. Rd2 $14) 26... b6 {[%emt 0:00:53]} ({Black should try} 26... Qc6 $11) 27. bxc5 {[%emt 0:00:39]} bxc5 {[%emt 0:00:03]} 28. Rd5 {[%emt 0:00:22]} Nf4 {[%emt 0:01:00]} 29. Bxf4 {[%emt 0:00:37]} exf4 {[%emt 0:00:00]} 30. Red1 {[%emt 0:00:04]} Rf8 {[%emt 0:00:25]} 31. Rd8 {[%emt 0:01:14][%cal Oe4f6] aiming for Nf6+!} Qc6 {[%emt 0:00:38]} 32. R1d5 {[%emt 0:00:19]} (32. R8d5 $1 $11 {remains equal.}) 32... Rxd8 $1 $17 {[%emt 0:00:23]} 33. Rxd8+ {[%emt 0:00:00]} Kh7 {[%emt 0:00:01]} 34. Rd5 $2 {[%emt 0:00:16]} f5 {[%emt 0:00:21]} ({Don't do} 34... Qxd5 35. Nf6+ $1 {[%mdl 512]} gxf6 36. Qxd5 $18) 35. Nd2 {[%emt 0:00:08]} c4 {[%emt 0:00:02]} (35... Re1+ $19 {and Black stays clearly on top.} 36. Kh2 c4 37. Rxf5 Qxf3 38. gxf3 (38. Nxf3 $2 Rc1 $17) 38... Re2) 36. Rxf5 {[%emt 0:00:12]} (36. Kf1 $17) 36... Re1+ $1 $19 {[%emt 0:00:11]} 37. Kh2 {[%emt 0:00:04]} Qxf3 {[%emt 0:00:07]} 38. Nxf3 {[%emt 0:00:01][%mdl 4096] Endgame KRB-KRN} Re2 {[%emt 0:00:13]} (38... Rc1 $142 39. h4 Rxc3) 39. Rf7 {[%emt 0:00:17]} (39. a4 $142) 39... Bb6 $1 $17 {[%emt 0:00:05]} 40. a4 {[%emt 0:00:19]} Rxf2 {[%emt 0:00:06]} ({Much weaker is} 40... Bxf2 $6 41. Rxf4 Ba7 42. Rxc4 $11) 41. h4 {[%emt 0:00:09]} (41. Rxf4 $17 Bc7 42. Kg1 Rxg2+ 43. Kxg2 Bxf4 44. Nd4) 41... Rc2 {[%emt 0:00:11]} 42. h5 {[%emt 0:00:09]} (42. Kh3 $17 {was called for.}) 42... Rxc3 $19 {[%emt 0:00:05]} 43. Kh3 {[%emt 0:00:12]} Rd3 {[%emt 0:00:12] Threatens to win with ...c3.} 44. Rxf4 {[%emt 0:00:04]} c3 {[%emt 0:00:11] And now ...Rd5 would win.} 45. Rc4 {[%emt 0:00:01]} Rd5 {[%emt 0:00:11]} (45... Bd8 $1 $19 46. Kg3 Bf6) 46. Rxc3 $17 {[%emt 0:00:11]} Rxh5+ {[%emt 0:00:02]} 47. Kg4 {[%emt 0:00:00]} Ra5 {[%emt 0:00:28]} 48. Rc4 {[%emt 0:00:03]} Bd8 {[%emt 0:00:03]} 49. Kf4 {[%emt 0:00:42]} Bf6 {[%emt 0:00:05]} 50. g4 {[%emt 0:00:06]} Kg6 {[%emt 0:00:03]} 51. Kg3 {[%emt 0:00:04]} Kf7 {[%emt 0:00:05]} 52. Kf4 {[%emt 0:00:07] [#]} (52. Re4 $17) 52... Ke6 $1 $19 {[%emt 0:00:04]} 53. Ke4 {[%emt 0:00:05]} Kd6 {[%emt 0:00:04]} 54. Nd2 {[%emt 0:00:14]} (54. Ke3 {keeps fighting.}) 54... Rc5 {[%emt 0:00:18]} 55. Kd3 {[%emt 0:00:25]} (55. Rb4) 55... Rxc4 {[%emt 0:00:28]} 56. Kxc4 {[%emt 0:00:04] KB-KN} Ke5 {[%emt 0:00:01] Black mates.} 57. Nb3 {[%emt 0:00:05]} Kf4 {[%emt 0:00:12]} 58. Nc5 {[%emt 0:00:01]} Kxg4 {[%emt 0:00:03]} 59. Nxa6 {[%emt 0:00:01]} h5 {[%emt 0:00:07][%cal Bh6h5,Bh5h4,Bh4h3][%mdl 32]} 60. Nc5 {[%emt 0:00:25]} h4 {[%emt 0:00:06]} 61. a5 {[%emt 0:00:13]} Bd8 {[%emt 0:00:17]} 62. a6 {[%emt 0:00:18]} Bb6 {[%emt 0:00:01]} 63. Nd7 {[%emt 0:00:11] [#]} Ba7 $1 {[%emt 0:00:27]} 64. Kd3 {[%emt 0:00:22]} h3 {[%emt 0:00:10] Weighted Error Value: White=0.37/Black=0.12 (very precise)} 0-1

[Event "MCCT Chessable Masters 2022"]
[Site "Online"]
[Date "2022.05.16"]
[Round "8.8"]
[White "Harikrishna, Pentala"]
[Black "Jones, Gawain C B"]
[Result "1-0"]
[ECO "C78"]
[WhiteElo "2705"]
[BlackElo "2669"]
[Annotator "TA"]
[PlyCount "89"]
[EventDate "2022.05.19"]
[EventType "tourn"]
[EventCountry "NET"]
[SourceTitle "playchess.com"]
[Source "ChessBase"]
[SourceQuality "1"]
[TimeControl "900+10"]

{[%evp 17,89,33,47,11,0,6,33,16,15,15,29,29,20,27,29,25,34,34,35,30,30,28,23,31,68,54,56,56,105,112,107,107,350,345,439,433,504,524,530,530,493,435,524,315,519,524,497,227,516,422,511,508,472,474,399,239,506,494,497,446,1225,1158,994,852,6535,5767,5097,5065,5604,5355,29979,29980,29978,5708]} 1. e4 {[%emt 0:00:00]} e5 {[%emt 0:00:00]} 2. Nf3 {[%emt 0:00:02]} Nc6 {[%emt 0:00:01]} 3. Bb5 {[%emt 0:00:01]} a6 {[%emt 0:00:01]} 4. Ba4 {[%emt 0:00:01]} Nf6 {[%emt 0:00:01]} 5. O-O {[%emt 0:00:01]} b5 {[%emt 0:00:01]} 6. Bb3 {[%emt 0:00:02]} Bc5 {[%emt 0:00:01]} 7. a4 {[%emt 0:00:03]} Rb8 {[%emt 0:00:01]} 8. c3 {[%emt 0:00:01]} d6 {[%emt 0:00:01]} 9. d4 {[%emt 0:00:01]} Bb6 {[%emt 0:00:01]} 10. a5 {[%emt 0:00:02] C78: Ruy Lopez: Archangelsk and Möller Defences.} Ba7 {[%emt 0:00:01]} (10... Nxa5 11. Rxa5 Bxa5 12. dxe5 $14) (10... Bxa5 $2 11. dxe5 (11. d5 Ne7 $18) 11... dxe5 12. Qxd8+ Kxd8 13. Bd5 (13. Bxf7 Bb6 $16) 13... Nxd5 14. exd5 $18) 11. h3 {[%emt 0:00:01]} Bb7 {[%emt 0:00:57]} 12. Be3 {[%emt 0:00:13] White is slightly better.} Nxe4 {[%emt 0:01:26]} 13. Re1 {[%emt 0:00:04]} (13. d5 {is interesting.} Bxe3 14. dxc6 Nxf2 15. Qe2) 13... Ne7 {[%emt 0:00:30]} 14. Nbd2 {[%emt 0:01:47]} Nxd2 {[%emt 0:01:21]} 15. Bxd2 {[%emt 0:00:04] Hoping for Ng5.} O-O {[%emt 0:01:49]} 16. dxe5 {[%emt 0:00:15]} dxe5 {[%emt 0:00:30]} 17. Nxe5 {[%emt 0:01:27] And now Bg5 would win.} (17. Rxe5 Ng6 18. Rf5 h6 $17) 17... Ng6 {[%emt 0:00:22]} 18. Be3 {[%emt 0:00:49][%cal Bd2e3,Be3a7,Ba7c5][%mdl 32] [#]} Nxe5 $146 {[%emt 0:02:14]} ({Predecessor:} 18... Bxe3 19. Rxe3 Qg5 20. Qg4 Qxg4 21. hxg4 Nxe5 22. Rxe5 Rfe8 23. Rc5 c6 24. Kf1 h6 {1-0 (56) Castro,F (2271)-Pastukhov,I ICCF email 2015}) 19. Qxd8 {[%emt 0:00:04]} Rbxd8 {[%emt 0:00:02]} 20. Bxa7 {[%emt 0:00:01]} Nc4 {[%emt 0:01:50]} 21. Bxc4 {[%emt 0:03:45]} bxc4 {[%emt 0:00:03]} 22. Re7 {[%emt 0:00:01]} Rd2 {[%emt 0:01:09]} (22... Rc8 $14) 23. Rxc7 $16 {[%emt 0:00:26]} Rxb2 {[%emt 0:00:01]} 24. Rd1 {[%emt 0:01:03] Prevents Bd5. Bc5 is the strong threat.} h5 $2 {[%emt 0:00:51] [#] This move loses the game for Black.} (24... Be4 $16 {was called for.}) 25. Bc5 $1 $18 {[%emt 0:00:43]} (25. Rxc4 Rb5 $16) 25... Re8 {[%emt 0:02:50] [#]} 26. Rdd7 $1 {[%emt 0:00:11][%csl LRb7,LRf7]} Rb5 {[%emt 0:00:25]} 27. Rxf7 {[%emt 0:01:12]} ({Less strong is} 27. Rxb7 Rxc5 28. Rxf7 Rg5 $16) 27... Rxc5 {[%emt 0:00:45]} 28. Rxg7+ {[%emt 0:00:30]} ({Weaker is} 28. Rxb7 Rg5 29. h4 Rg4 $16) 28... Kh8 {[%emt 0:00:01] White must now prevent ...Re1+.} 29. Rh7+ {[%emt 0:00:06]} ({Not} 29. Rxb7 Rxa5 30. Rh7+ Kg8 31. Rbg7+ Kf8 $18) 29... Kg8 {[%emt 0:00:01]} 30. Rcg7+ {[%emt 0:00:09]} Kf8 {[%emt 0:00:01]} 31. Rxb7 {[%emt 0:00:03][%cal Rh7h8][%mdl 4096] Endgame KRR-KRR} Kg8 {[%emt 0:00:01] Inhibits Rh8+.} 32. Rbg7+ {[%emt 0:01:17]} Kf8 {[%emt 0:00:01]} 33. Rc7 {[%emt 0:00:28]} Rxc7 {[%emt 0:00:03]} 34. Rxc7 {[%emt 0:00:01] KR-KR} Re5 {[%emt 0:00:01]} 35. Rxc4 {[%emt 0:00:02]} Rxa5 {[%emt 0:00:02]} 36. Rc7 {[%emt 0:00:10]} (36. g4 $142) 36... Ke8 $2 {[%emt 0:00:37]} (36... h4 37. Kf1 Rh5) 37. g4 {[%emt 0:00:10]} Kd8 {[%emt 0:00:03]} 38. Ra7 {[%emt 0:00:21]} Kc8 {[%emt 0:00:11]} (38... Ra4 $142 39. gxh5 Rh4) 39. Kg2 {[%emt 0:00:06]} Kb8 {[%emt 0:00:04]} 40. Rh7 {[%emt 0:00:10]} hxg4 {[%emt 0:00:07]} 41. hxg4 {[%emt 0:00:02][%cal Bh3g4,Bg4g5][%mdl 32] aiming for f4.} Rc5 {[%emt 0:00:02]} 42. f4 {[%emt 0:00:09] White threatens g5 and mate.} Rc4 {[%emt 0:00:25]} 43. Rf7 {[%emt 0:01:03] White wants to mate with g5.} Kc8 {[%emt 0:00:02]} 44. g5 {[%emt 0:00:05]} Kd8 {[%emt 0:00:41]} 45. Kg3 {[%emt 0:00:52] Weighted Error Value: White=0.07 (flawless) /Black=0.35} (45. g6 $142 Ke8 46. f5 Rc6 47. Kf3 a5 48. Kf4 Rd6 49. f6 Rc6 50. Re7+ Kd8 51. Kf5) 1-0